[Event "Late-Titled-Tuesday-Blitz-April-30-2024"]
[Site "Chess.com"]
[Date "2024.04.30"]
[Round "4"]
[White "Abund"]
[Black "rhungaski"]
[Result "1/2-1/2"]
[WhiteElo "2771"]
[BlackElo "2571"]
[TimeControl "180+1"]
[EndTime "14:41:28 PDT"]
[Termination "Game drawn by repetition"]

1. e4 {[%clk 0:03:00.9]} 1... e5 {[%clk 0:02:58.9]} 2. Nf3 {[%clk 0:03:01.2]}
2... Nc6 {[%clk 0:02:58.7]} 3. Bb5 {[%clk 0:03:01.5]} 3... a6 {[%clk 0:02:58.8]}
4. Ba4 {[%clk 0:03:02]} 4... Nf6 {[%clk 0:02:58.6]} 5. d3 {[%clk 0:03:02.4]}
5... d6 {[%clk 0:02:56.2]} 6. c3 {[%clk 0:03:02.1]} 6... Bd7 {[%clk 0:02:52.8]}
7. O-O {[%clk 0:03:01.7]} 7... g6 {[%clk 0:02:50.8]} 8. Re1 {[%clk 0:03:01]}
8... Bg7 {[%clk 0:02:50.8]} 9. Nbd2 {[%clk 0:03:01.6]} 9... O-O {[%clk
0:02:50.6]} 10. d4 {[%clk 0:02:49.2]} 10... Qe7 {[%clk 0:02:48.2]} 11. Bc2
{[%clk 0:02:39.2]} 11... h6 {[%clk 0:02:38.2]} 12. Nf1 {[%clk 0:02:34.3]} 12...
a5 {[%clk 0:02:27.3]} 13. Ng3 {[%clk 0:02:30.4]} 13... Nh7 {[%clk 0:02:15.6]}
14. h3 {[%clk 0:02:04.8]} 14... Kh8 {[%clk 0:02:13]} 15. Bd2 {[%clk 0:01:47.9]}
15... Ng5 {[%clk 0:01:53.4]} 16. Nxg5 {[%clk 0:01:30.7]} 16... hxg5 {[%clk
0:01:54.3]} 17. Qc1 {[%clk 0:01:23.5]} 17... Bf6 {[%clk 0:01:52.6]} 18. d5
{[%clk 0:01:12.5]} 18... Nb8 {[%clk 0:01:49.3]} 19. Bd1 {[%clk 0:01:12]} 19...
Kg7 {[%clk 0:01:37.4]} 20. Bg4 {[%clk 0:01:03.7]} 20... Rh8 {[%clk 0:01:25.3]}
21. c4 {[%clk 0:01:00.4]} 21... Rh4 {[%clk 0:01:06.1]} 22. Qd1 {[%clk
0:00:37.7]} 22... Bxg4 {[%clk 0:01:02.5]} 23. hxg4 {[%clk 0:00:37.6]} 23... Nd7
{[%clk 0:01:03.3]} 24. f3 {[%clk 0:00:33.2]} 24... a4 {[%clk 0:00:37.8]} 25. b4
{[%clk 0:00:30.9]} 25... axb3 {[%clk 0:00:35.9]} 26. axb3 {[%clk 0:00:31.8]}
26... Rhh8 {[%clk 0:00:36.2]} 27. Be3 {[%clk 0:00:28.7]} 27... c6 {[%clk
0:00:34.5]} 28. Qd2 {[%clk 0:00:23.9]} 28... Rhc8 {[%clk 0:00:33.3]} 29. Qb4
{[%clk 0:00:23.5]} 29... cxd5 {[%clk 0:00:29.6]} 30. cxd5 {[%clk 0:00:21]} 30...
Rxa1 {[%clk 0:00:25.5]} 31. Rxa1 {[%clk 0:00:20.7]} 31... Nc5 {[%clk 0:00:26.3]}
32. Qb5 {[%clk 0:00:17]} 32... Qc7 {[%clk 0:00:10.8]} 33. Ra7 {[%clk 0:00:14.5]}
33... Qb8 {[%clk 0:00:07.9]} 34. Bxc5 {[%clk 0:00:13.1]} 34... Rxc5 {[%clk
0:00:08.8]} 35. Qxb7 {[%clk 0:00:13.3]} 35... Rc1+ {[%clk 0:00:08.9]} 36. Kf2
{[%clk 0:00:12.2]} 36... Qxb7 {[%clk 0:00:08.7]} 37. Rxb7 {[%clk 0:00:12.3]}
37... Rc2+ {[%clk 0:00:09]} 38. Kf1 {[%clk 0:00:11.7]} 38... Rc1+ {[%clk
0:00:09.3]} 39. Kf2 {[%clk 0:00:11.1]} 39... Bd8 {[%clk 0:00:09.9]} 40. Ne2
{[%clk 0:00:10.4]} 40... Rc2 {[%clk 0:00:09.7]} 41. Kf1 {[%clk 0:00:10.9]} 41...
Ba5 {[%clk 0:00:09.6]} 42. Rd7 {[%clk 0:00:07.2]} 42... Bb4 {[%clk 0:00:09.6]}
43. Rb7 {[%clk 0:00:05.6]} 43... Bc5 {[%clk 0:00:09.5]} 44. b4 {[%clk 0:00:06]}
44... Be3 {[%clk 0:00:09.8]} 45. Rd7 {[%clk 0:00:04.6]} 45... Rb2 {[%clk
0:00:10.1]} 46. g3 {[%clk 0:00:02.7]} 46... Rb1+ {[%clk 0:00:09.3]} 47. Kg2
{[%clk 0:00:03.3]} 47... Rb2 {[%clk 0:00:09.7]} 48. Kf1 {[%clk 0:00:03.9]} 48...
Rb1+ {[%clk 0:00:06.6]} 49. Kg2 {[%clk 0:00:04.3]} 49... Rxb4 {[%clk 0:00:06]}
50. Rxd6 {[%clk 0:00:03.7]} 50... Rb2 {[%clk 0:00:06.7]} 51. Kf1 {[%clk
0:00:04.3]} 51... Rb1+ {[%clk 0:00:07.1]} 52. Kg2 {[%clk 0:00:04.9]} 52... Rb2
{[%clk 0:00:07]} 53. Kf1 {[%clk 0:00:05.3]} 53... Rb1+ {[%clk 0:00:05.7]} 54.
Kg2 {[%clk 0:00:05.8]} 54... Rb2 {[%clk 0:00:06.1]} 1/2-1/2

[Event "Late-Titled-Tuesday-Blitz-April-30-2024"]
[Site "Chess.com"]
[Date "2024.04.30"]
[Round "4"]
[White "ameetghasi100"]
[Black "AryanTari"]
[Result "0-1"]
[WhiteElo "2821"]
[BlackElo "3013"]
[TimeControl "180+1"]
[EndTime "14:41:29 PDT"]
[Termination "AryanTari won by resignation"]

1. b3 {[%clk 0:02:59.9]} 1... d5 {[%clk 0:02:48.6]} 2. Bb2 {[%clk 0:03:00.8]}
2... Bf5 {[%clk 0:02:48.8]} 3. d3 {[%clk 0:03:00.9]} 3... Nf6 {[%clk 0:02:48.3]}
4. Nd2 {[%clk 0:03:01.8]} 4... e6 {[%clk 0:02:46]} 5. Ngf3 {[%clk 0:03:02.7]}
5... c5 {[%clk 0:02:42.1]} 6. e4 {[%clk 0:02:47.8]} 6... Bg6 {[%clk 0:02:31.8]}
7. Ne5 {[%clk 0:02:42.2]} 7... Nc6 {[%clk 0:02:27.8]} 8. Nxc6 {[%clk 0:02:27.6]}
8... bxc6 {[%clk 0:02:28.2]} 9. Qe2 {[%clk 0:02:24.3]} 9... Be7 {[%clk
0:02:25.5]} 10. g3 {[%clk 0:02:14.8]} 10... O-O {[%clk 0:02:23]} 11. Bg2 {[%clk
0:02:15.1]} 11... a5 {[%clk 0:02:20.1]} 12. a4 {[%clk 0:02:12.6]} 12... Nd7
{[%clk 0:02:18.3]} 13. O-O {[%clk 0:02:02.4]} 13... Bf6 {[%clk 0:02:15.3]} 14.
c3 {[%clk 0:01:46.6]} 14... Qb6 {[%clk 0:01:54.1]} 15. Kh1 {[%clk 0:01:26.9]}
15... c4 {[%clk 0:01:48.6]} 16. dxc4 {[%clk 0:01:24.8]} 16... Nc5 {[%clk
0:01:46.5]} 17. Qe3 {[%clk 0:00:35.9]} 17... Rfd8 {[%clk 0:01:40.8]} 18. cxd5
{[%clk 0:00:26.4]} 18... cxd5 {[%clk 0:01:33.5]} 19. e5 {[%clk 0:00:17.6]} 19...
Bxe5 {[%clk 0:01:21.6]} 20. Qxe5 {[%clk 0:00:16.8]} 20... Nd3 {[%clk 0:01:22.3]}
21. Qg5 {[%clk 0:00:12.5]} 21... Nxb2 {[%clk 0:01:21.3]} 22. h4 {[%clk
0:00:12.9]} 22... h6 {[%clk 0:01:20.5]} 23. Qg4 {[%clk 0:00:13.3]} 23... h5
{[%clk 0:01:20.6]} 24. Qg5 {[%clk 0:00:13.4]} 24... Nd3 {[%clk 0:01:21.1]} 25.
Qe3 {[%clk 0:00:09.2]} 25... Qxe3 {[%clk 0:01:16.2]} 26. fxe3 {[%clk 0:00:10.1]}
26... Rac8 {[%clk 0:01:16]} 27. c4 {[%clk 0:00:10.5]} 27... d4 {[%clk
0:01:14.8]} 28. exd4 {[%clk 0:00:06.9]} 28... Rxd4 {[%clk 0:01:15]} 29. Nf3
{[%clk 0:00:07.5]} 29... Rdd8 {[%clk 0:01:12.4]} 30. Ng5 {[%clk 0:00:07.8]}
30... Nc5 {[%clk 0:01:11.4]} 31. Rf3 {[%clk 0:00:07.3]} 31... f6 {[%clk
0:01:08.1]} 32. Nh3 {[%clk 0:00:07.4]} 32... e5 {[%clk 0:01:08.6]} 33. Re3
{[%clk 0:00:06.8]} 33... Rd3 {[%clk 0:01:07]} 34. Rae1 {[%clk 0:00:06.9]} 34...
Nxb3 {[%clk 0:01:05.3]} 35. Nf2 {[%clk 0:00:04.4]} 35... Rxe3 {[%clk 0:01:00.8]}
36. Rxe3 {[%clk 0:00:05.3]} 36... Nc5 {[%clk 0:01:01.1]} 37. Nd1 {[%clk
0:00:04.9]} 37... Nxa4 {[%clk 0:01:00.2]} 38. Ra3 {[%clk 0:00:05.2]} 38... Be8
{[%clk 0:00:57.1]} 39. Bd5+ {[%clk 0:00:03.8]} 39... Kf8 {[%clk 0:00:57.4]} 40.
Ne3 {[%clk 0:00:04.1]} 40... g6 {[%clk 0:00:57.9]} 41. Kg2 {[%clk 0:00:04.1]}
41... Ke7 {[%clk 0:00:58.4]} 42. Kf2 {[%clk 0:00:04.3]} 42... f5 {[%clk
0:00:56.4]} 43. Ke1 {[%clk 0:00:03.6]} 43... Rc5 {[%clk 0:00:53]} 44. Kd2 {[%clk
0:00:03.8]} 44... Nb6 {[%clk 0:00:53.6]} 45. Bg8 {[%clk 0:00:03.2]} 45... Bf7
{[%clk 0:00:49.6]} 46. Bxf7 {[%clk 0:00:03]} 46... Kxf7 {[%clk 0:00:50.5]} 47.
Kc3 {[%clk 0:00:03.3]} 47... f4 {[%clk 0:00:51.2]} 48. gxf4 {[%clk 0:00:03.4]}
48... exf4 {[%clk 0:00:52.1]} 49. Ng2 {[%clk 0:00:02.9]} 49... Rxc4+ {[%clk
0:00:52.2]} 50. Kd3 {[%clk 0:00:03.2]} 50... a4 {[%clk 0:00:50.5]} 51. Ne1
{[%clk 0:00:03.3]} 51... Rb4 {[%clk 0:00:49.4]} 52. Ra1 {[%clk 0:00:03.6]} 52...
Kf6 {[%clk 0:00:47.4]} 53. Nf3 {[%clk 0:00:04.1]} 53... Rb3+ {[%clk 0:00:47.6]}
54. Ke4 {[%clk 0:00:04.4]} 54... Rb4+ {[%clk 0:00:47.3]} 55. Nd4 {[%clk
0:00:04.9]} 55... Nd7 {[%clk 0:00:45.4]} 56. Kd5 {[%clk 0:00:04.8]} 56... Ne5
{[%clk 0:00:44.9]} 57. Rf1 {[%clk 0:00:04.5]} 57... f3 {[%clk 0:00:44.1]} 58.
Kc5 {[%clk 0:00:03.4]} 58... Rb2 {[%clk 0:00:42]} 59. Nxf3 {[%clk 0:00:03.3]}
59... Nxf3 {[%clk 0:00:41]} 60. Rxf3+ {[%clk 0:00:04.2]} 60... Kg7 {[%clk
0:00:41.7]} 61. Ra3 {[%clk 0:00:02.7]} 61... Rg2 {[%clk 0:00:33.3]} 62. Rxa4
{[%clk 0:00:03]} 62... Rg4 {[%clk 0:00:34.1]} 63. Rxg4 {[%clk 0:00:02.3]} 63...
hxg4 {[%clk 0:00:35]} 64. Kd4 {[%clk 0:00:03.1]} 64... Kh6 {[%clk 0:00:35.7]}
65. Ke3 {[%clk 0:00:04]} 65... Kh5 {[%clk 0:00:36.5]} 66. Kf2 {[%clk 0:00:04.5]}
66... Kxh4 {[%clk 0:00:37.2]} 67. Kg2 {[%clk 0:00:05.4]} 67... g3 {[%clk
0:00:37.9]} 68. Kg1 {[%clk 0:00:05.8]} 68... Kh3 {[%clk 0:00:38.2]} 69. Kh1
{[%clk 0:00:06.1]} 69... g2+ {[%clk 0:00:38.9]} 70. Kg1 {[%clk 0:00:07]} 70...
g5 {[%clk 0:00:39.7]} 71. Kf2 {[%clk 0:00:06.7]} 71... Kh2 {[%clk 0:00:40.1]}
72. Kf3 {[%clk 0:00:07]} 72... g1=Q {[%clk 0:00:40]} 73. Ke4 {[%clk 0:00:07.9]}
73... g4 {[%clk 0:00:39.2]} 0-1

[Event "Late-Titled-Tuesday-Blitz-April-30-2024"]
[Site "Chess.com"]
[Date "2024.04.30"]
[Round "4"]
[White "moro182"]
[Black "Njal28"]
[Result "0-1"]
[WhiteElo "2893"]
[BlackElo "3097"]
[TimeControl "180+1"]
[EndTime "14:41:30 PDT"]
[Termination "Njal28 won on time"]

1. d4 {[%clk 0:03:00]} 1... g6 {[%clk 0:02:59.3]} 2. e4 {[%clk 0:02:56.9]} 2...
Bg7 {[%clk 0:02:59.4]} 3. Nc3 {[%clk 0:02:57.6]} 3... c5 {[%clk 0:02:59.1]} 4.
d5 {[%clk 0:02:54.2]} 4... d6 {[%clk 0:02:58.3]} 5. Bb5+ {[%clk 0:02:53.7]} 5...
Nd7 {[%clk 0:02:57.4]} 6. a4 {[%clk 0:02:53.6]} 6... Nf6 {[%clk 0:02:56.3]} 7.
Nf3 {[%clk 0:02:53.7]} 7... O-O {[%clk 0:02:56.2]} 8. O-O {[%clk 0:02:53]} 8...
a6 {[%clk 0:02:56.1]} 9. Bd3 {[%clk 0:02:52]} 9... Ng4 {[%clk 0:02:53.8]} 10. h3
{[%clk 0:02:50.7]} 10... Nge5 {[%clk 0:02:53.8]} 11. Nxe5 {[%clk 0:02:49.4]}
11... Nxe5 {[%clk 0:02:54.5]} 12. Be2 {[%clk 0:02:49.8]} 12... Rb8 {[%clk
0:02:54.5]} 13. a5 {[%clk 0:02:46.6]} 13... b5 {[%clk 0:02:37.2]} 14. axb6
{[%clk 0:02:45.1]} 14... Rxb6 {[%clk 0:02:37.8]} 15. Ra2 {[%clk 0:02:44.2]}
15... Qc7 {[%clk 0:02:34.6]} 16. f4 {[%clk 0:02:38.8]} 16... Nd7 {[%clk
0:02:33.4]} 17. Be3 {[%clk 0:02:39.3]} 17... Rb4 {[%clk 0:02:26.7]} 18. Bf3
{[%clk 0:02:25.7]} 18... Nb6 {[%clk 0:02:22]} 19. Qd3 {[%clk 0:02:04.5]} 19...
Nc4 {[%clk 0:02:14.4]} 20. Bc1 {[%clk 0:02:01.8]} 20... Qb6 {[%clk 0:01:46.1]}
21. Kh2 {[%clk 0:01:38]} 21... Bd7 {[%clk 0:01:09.2]} 22. b3 {[%clk 0:01:02.1]}
22... Na5 {[%clk 0:01:09.3]} 23. Be3 {[%clk 0:01:01.6]} 23... Qc7 {[%clk
0:01:09.8]} 24. e5 {[%clk 0:00:53.3]} 24... c4 {[%clk 0:01:07.6]} 25. bxc4
{[%clk 0:00:39.8]} 25... Nxc4 {[%clk 0:01:05.8]} 26. exd6 {[%clk 0:00:30]} 26...
Nxd6 {[%clk 0:01:05]} 27. Bd2 {[%clk 0:00:18.3]} 27... Rd4 {[%clk 0:01:04.7]}
28. Qe2 {[%clk 0:00:16.3]} 28... Rxd2 {[%clk 0:01:04.2]} 29. Qxd2 {[%clk
0:00:17.2]} 29... Bxc3 {[%clk 0:01:04.1]} 30. Qe3 {[%clk 0:00:17.8]} 30... Nf5
{[%clk 0:01:03.5]} 31. Qe4 {[%clk 0:00:16.7]} 31... Bb5 {[%clk 0:00:56.3]} 32.
Rd1 {[%clk 0:00:15.1]} 32... Rd8 {[%clk 0:00:48.7]} 33. g3 {[%clk 0:00:14.2]}
33... Bf6 {[%clk 0:00:45.4]} 34. Be2 {[%clk 0:00:13.5]} 34... Nd6 {[%clk
0:00:36.9]} 35. Qf3 {[%clk 0:00:12.6]} 35... Bxe2 {[%clk 0:00:35.4]} 36. Qxe2
{[%clk 0:00:13.5]} 36... a5 {[%clk 0:00:35.5]} 37. Rc1 {[%clk 0:00:12.3]} 37...
Qc3 {[%clk 0:00:32.9]} 38. Rd1 {[%clk 0:00:07.6]} 38... Rc8 {[%clk 0:00:30.3]}
39. Rd3 {[%clk 0:00:07.4]} 39... Qc4 {[%clk 0:00:30.2]} 40. Rxa5 {[%clk
0:00:06.4]} 40... Qxc2 {[%clk 0:00:30.3]} 41. Qxc2 {[%clk 0:00:04.9]} 41...
Rxc2+ {[%clk 0:00:31.2]} 42. Kh1 {[%clk 0:00:05]} 42... h5 {[%clk 0:00:30.5]}
43. g4 {[%clk 0:00:04.9]} 43... hxg4 {[%clk 0:00:30.7]} 44. hxg4 {[%clk
0:00:05.8]} 44... g5 {[%clk 0:00:23.9]} 45. Rh3 {[%clk 0:00:02.6]} 45... gxf4
{[%clk 0:00:22.5]} 46. Ra8+ {[%clk 0:00:02.2]} 46... Rc8 {[%clk 0:00:22.3]} 47.
Rxc8+ {[%clk 0:00:02.5]} 47... Nxc8 {[%clk 0:00:23.2]} 48. Rh5 {[%clk
0:00:02.9]} 48... Nd6 {[%clk 0:00:21.9]} 49. Kg2 {[%clk 0:00:03.5]} 49... Bd4
{[%clk 0:00:21.5]} 50. Kf3 {[%clk 0:00:04]} 50... Be3 {[%clk 0:00:21.7]} 51. g5
{[%clk 0:00:02.6]} 51... Nf5 {[%clk 0:00:20.5]} 52. Kg4 {[%clk 0:00:02]} 52...
Nd4 {[%clk 0:00:19.1]} 53. Rh1 {[%clk 0:00:01.5]} 53... Kg7 {[%clk 0:00:19.1]}
54. Ra1 {[%clk 0:00:01.6]} 54... f3 {[%clk 0:00:16.3]} 55. Ra6 {[%clk
0:00:02.5]} 55... f2 {[%clk 0:00:16.4]} 56. Ra1 {[%clk 0:00:03.1]} 56... Nb3
{[%clk 0:00:14.6]} 57. Kf3 {[%clk 0:00:02.6]} 57... Nxa1 {[%clk 0:00:14.9]} 0-1

[Event "Late-Titled-Tuesday-Blitz-April-30-2024"]
[Site "Chess.com"]
[Date "2024.04.30"]
[Round "4"]
[White "mbojan"]
[Black "chigorin28"]
[Result "1-0"]
[WhiteElo "2954"]
[BlackElo "2519"]
[TimeControl "180+1"]
[EndTime "14:41:31 PDT"]
[Termination "mbojan won on time"]

1. a3 {[%clk 0:03:00.9]} 1... Nf6 {[%clk 0:02:57.4]} 2. g3 {[%clk 0:03:00.6]}
2... e6 {[%clk 0:02:57]} 3. Bg2 {[%clk 0:03:00.7]} 3... d5 {[%clk 0:02:57.4]} 4.
d3 {[%clk 0:03:00]} 4... Be7 {[%clk 0:02:57.5]} 5. Nd2 {[%clk 0:03:00]} 5... b6
{[%clk 0:02:56.5]} 6. c4 {[%clk 0:02:57.6]} 6... Bb7 {[%clk 0:02:55.8]} 7. cxd5
{[%clk 0:02:57.9]} 7... exd5 {[%clk 0:02:54.8]} 8. Ngf3 {[%clk 0:02:58.4]} 8...
O-O {[%clk 0:02:55.2]} 9. O-O {[%clk 0:02:58.7]} 9... c5 {[%clk 0:02:55.9]} 10.
e3 {[%clk 0:02:55.4]} 10... Nbd7 {[%clk 0:02:51.8]} 11. b3 {[%clk 0:02:55.4]}
11... Rc8 {[%clk 0:02:46.4]} 12. Bb2 {[%clk 0:02:55.2]} 12... Ba6 {[%clk
0:02:46.9]} 13. Qc2 {[%clk 0:02:54.9]} 13... Re8 {[%clk 0:02:38]} 14. Rfe1
{[%clk 0:02:49.7]} 14... Bd6 {[%clk 0:02:25.5]} 15. Rad1 {[%clk 0:02:41.5]}
15... Ne5 {[%clk 0:02:19.5]} 16. Nxe5 {[%clk 0:02:40.8]} 16... Bxe5 {[%clk
0:02:20.4]} 17. Bxe5 {[%clk 0:02:41.2]} 17... Rxe5 {[%clk 0:02:20.8]} 18. Qb1
{[%clk 0:02:34.8]} 18... Re7 {[%clk 0:02:14.4]} 19. Nf3 {[%clk 0:02:30.5]} 19...
Qc7 {[%clk 0:02:09.6]} 20. Rc1 {[%clk 0:02:28.2]} 20... Qd6 {[%clk 0:01:58.9]}
21. Red1 {[%clk 0:02:17.6]} 21... h6 {[%clk 0:01:51]} 22. Qb2 {[%clk 0:02:16.4]}
22... Rec7 {[%clk 0:01:35.5]} 23. b4 {[%clk 0:02:01.6]} 23... Nd7 {[%clk
0:01:07.1]} 24. b5 {[%clk 0:01:50.6]} 24... Bb7 {[%clk 0:01:07.1]} 25. a4 {[%clk
0:01:51.3]} 25... Nf6 {[%clk 0:01:04.5]} 26. Nd2 {[%clk 0:01:43.9]} 26... Qe7
{[%clk 0:00:57.8]} 27. Nb1 {[%clk 0:01:41.8]} 27... c4 {[%clk 0:00:37.1]} 28. d4
{[%clk 0:01:36.6]} 28... Rd8 {[%clk 0:00:22]} 29. Nc3 {[%clk 0:01:35.9]} 29...
Bc8 {[%clk 0:00:20]} 30. Ra1 {[%clk 0:01:36]} 30... Bf5 {[%clk 0:00:19.6]} 31.
Qa3 {[%clk 0:01:35.2]} 31... Qd7 {[%clk 0:00:18.5]} 32. f3 {[%clk 0:01:09.1]}
32... Bh3 {[%clk 0:00:18.4]} 33. Bh1 {[%clk 0:01:09.6]} 33... Bf5 {[%clk
0:00:18.7]} 34. Re1 {[%clk 0:01:09]} 34... Re8 {[%clk 0:00:19]} 35. Kf2 {[%clk
0:01:08.6]} 35... Bd3 {[%clk 0:00:19.2]} 36. Qb4 {[%clk 0:01:08.2]} 36... Qh3
{[%clk 0:00:19.3]} 37. Kg1 {[%clk 0:01:08.1]} 37... Rce7 {[%clk 0:00:19.6]} 38.
Nd1 {[%clk 0:01:06.3]} 38... Bc2 {[%clk 0:00:18.6]} 39. Qd2 {[%clk 0:01:05.7]}
39... Bxd1 {[%clk 0:00:18.5]} 40. Raxd1 {[%clk 0:01:06.6]} 40... Qd7 {[%clk
0:00:14.3]} 41. Re2 {[%clk 0:01:04.5]} 41... Qd6 {[%clk 0:00:14.3]} 42. Qc3
{[%clk 0:01:02.3]} 42... Nh7 {[%clk 0:00:11.4]} 43. Rde1 {[%clk 0:01:00.5]}
43... Ng5 {[%clk 0:00:11.7]} 44. e4 {[%clk 0:00:53.7]} 44... dxe4 {[%clk
0:00:11.6]} 45. fxe4 {[%clk 0:00:54.6]} 45... Ne6 {[%clk 0:00:11.6]} 46. d5
{[%clk 0:00:48.9]} 46... Qc5+ {[%clk 0:00:11.8]} 47. Kf1 {[%clk 0:00:17.5]}
47... Ng5 {[%clk 0:00:11.5]} 48. e5 {[%clk 0:00:18.1]} 48... Rd8 {[%clk
0:00:06.7]} 49. Qe3 {[%clk 0:00:11.8]} 49... Rxd5 {[%clk 0:00:05.6]} 50. Bxd5
{[%clk 0:00:04.9]} 50... Qxd5 {[%clk 0:00:06.5]} 51. Qg1 {[%clk 0:00:03.5]}
51... Nf3 {[%clk 0:00:03.1]} 52. Qg2 {[%clk 0:00:03.8]} 1-0

[Event "Late-Titled-Tuesday-Blitz-April-30-2024"]
[Site "Chess.com"]
[Date "2024.04.30"]
[Round "4"]
[White "GaiozNigalidze"]
[Black "dennisodessa"]
[Result "1-0"]
[WhiteElo "2739"]
[BlackElo "2548"]
[TimeControl "180+1"]
[EndTime "14:41:32 PDT"]
[Termination "GaiozNigalidze won on time"]

1. e4 {[%clk 0:03:00.9]} 1... e6 {[%clk 0:03:00.1]} 2. d4 {[%clk 0:02:59.8]}
2... d5 {[%clk 0:03:00.8]} 3. e5 {[%clk 0:02:58.5]} 3... c5 {[%clk 0:03:00.8]}
4. c3 {[%clk 0:02:59.1]} 4... Qa5 {[%clk 0:03:01.5]} 5. Nf3 {[%clk 0:02:51.5]}
5... cxd4 {[%clk 0:03:01.2]} 6. Nxd4 {[%clk 0:02:51.7]} 6... Nc6 {[%clk
0:03:01.2]} 7. Nxc6 {[%clk 0:02:45]} 7... bxc6 {[%clk 0:03:02.1]} 8. Be2 {[%clk
0:02:44.1]} 8... Ba6 {[%clk 0:03:00.9]} 9. O-O {[%clk 0:02:43.5]} 9... Ne7
{[%clk 0:03:00]} 10. Be3 {[%clk 0:02:40.7]} 10... Bxe2 {[%clk 0:02:59]} 11. Qxe2
{[%clk 0:02:40]} 11... Nf5 {[%clk 0:02:59.7]} 12. Nd2 {[%clk 0:02:37.2]} 12...
Qc7 {[%clk 0:02:52.7]} 13. Nf3 {[%clk 0:02:34]} 13... Be7 {[%clk 0:02:48.5]} 14.
Rfd1 {[%clk 0:02:31.2]} 14... O-O {[%clk 0:02:46.6]} 15. b3 {[%clk 0:02:27.4]}
15... c5 {[%clk 0:02:44.1]} 16. Bf4 {[%clk 0:02:17.1]} 16... a5 {[%clk
0:02:39.7]} 17. c4 {[%clk 0:02:08.3]} 17... Rfd8 {[%clk 0:02:17.9]} 18. cxd5
{[%clk 0:01:55.3]} 18... Rxd5 {[%clk 0:02:11.5]} 19. Rdc1 {[%clk 0:01:13.5]}
19... a4 {[%clk 0:01:57.6]} 20. Rab1 {[%clk 0:01:08.1]} 20... axb3 {[%clk
0:01:49.7]} 21. axb3 {[%clk 0:01:09]} 21... Qb7 {[%clk 0:01:40.8]} 22. h3 {[%clk
0:01:04.1]} 22... h6 {[%clk 0:01:37]} 23. g4 {[%clk 0:00:57.2]} 23... Nd4 {[%clk
0:01:36.8]} 24. Qe4 {[%clk 0:00:49.7]} 24... Rb8 {[%clk 0:00:56.6]} 25. Nd2
{[%clk 0:00:45.8]} 25... Qa6 {[%clk 0:00:44.2]} 26. Rc4 {[%clk 0:00:41.8]} 26...
Qa2 {[%clk 0:00:36.3]} 27. Rc3 {[%clk 0:00:28.6]} 27... g5 {[%clk 0:00:33]} 28.
h4 {[%clk 0:00:13.2]} 28... gxf4 {[%clk 0:00:30.9]} 29. Rd3 {[%clk 0:00:12.3]}
29... Bxh4 {[%clk 0:00:18.2]} 30. Kg2 {[%clk 0:00:12]} 30... Bg5 {[%clk
0:00:17.7]} 31. Rd1 {[%clk 0:00:09.8]} 31... Nxb3 {[%clk 0:00:12.8]} 32. Rxd5
{[%clk 0:00:07.7]} 32... exd5 {[%clk 0:00:05.7]} 33. Qxd5 {[%clk 0:00:08.6]}
33... Qb2 {[%clk 0:00:05.4]} 34. Ne4 {[%clk 0:00:05.9]} 34... Qc2 {[%clk
0:00:04.1]} 35. e6 {[%clk 0:00:05.2]} 35... Rf8 {[%clk 0:00:02.5]} 36. exf7+
{[%clk 0:00:04.5]} 36... Rxf7 {[%clk 0:00:03.4]} 37. Nd6 {[%clk 0:00:04.5]}
37... Qg6 {[%clk 0:00:01.7]} 38. Qxb3 {[%clk 0:00:04.4]} 38... Kg7 {[%clk
0:00:02.1]} 39. Qxf7+ {[%clk 0:00:03.2]} 39... Qxf7 {[%clk 0:00:03]} 40. Nxf7
{[%clk 0:00:03.8]} 40... Kxf7 {[%clk 0:00:03.9]} 41. Rd5 {[%clk 0:00:02.7]}
41... Be7 {[%clk 0:00:03.2]} 42. Kf3 {[%clk 0:00:01.9]} 42... Ke6 {[%clk
0:00:04]} 43. Ke4 {[%clk 0:00:02.3]} 43... Bd6 {[%clk 0:00:04]} 44. Rf5 {[%clk
0:00:02.9]} 44... c4 {[%clk 0:00:03.5]} 45. Rb5 {[%clk 0:00:02]} 45... c3 {[%clk
0:00:02.9]} 46. Rb3 {[%clk 0:00:02.5]} 46... Be5 {[%clk 0:00:02.6]} 47. Rb4
{[%clk 0:00:03.1]} 47... Kd6 {[%clk 0:00:02.5]} 48. Rc4 {[%clk 0:00:03.6]} 1-0